bitfinex-derivatives/quotes_SOLF0:USTF0_20241211
["timestamp","ask_amount","ask_price","bid_price","bid_amount"]
[1733911930214,2.04,223.4,223.37,5.38723491]
[1733911931414,2.04,223.4,223.36,2.2379]
[1733911932421,2.04,223.4,223.3,1.407]
[1733911932622,2.04,223.4,223.34,6.79277989]
[1733911932821,2.04,223.43,223.38,6.79277989]
[1733911933017,2.04,223.43,223.4,6.79277989]
[1733911933216,1.412,223.54,223.42,6.79277989]
[1733911933421,6.79277989,223.51,223.44,6.79277989]
[1733911933722,2.04,223.5,223.46,2.2369]
[1733911933917,6.79277989,223.49,223.42,6.79277989]
[1733911934118,6.79277989,223.49,223.46,2.2369]
[1733911934927,2.04,223.5,223.44,6.79277989]
[1733911935223,2.04,223.5,223.48,2.2367]
[1733911935419,1.4552,223.57,223.46,6.79277989]
[1733911935615,2.04,223.56,223.52,2.2363]
[1733911935819,6.79277989,223.55,223.52,2.2363]
[1733911936525,6.79277989,223.55,223.53,2.2362]
[1733911936921,6.79277989,223.55,223.48,6.79277989]
[1733911937323,6.79277989,223.55,223.52,2.2363]
[1733911937819,2.04,223.56,223.52,2.2363]
[1733911938024,6.79277989,223.55,223.52,2.2363]
[1733911939431,6.79277989,223.55,223.51,2.2364]
[1733911941020,6.79277989,223.55,223.46,6.79277989]
[1733911941021,6.79277989,223.53,223.46,6.79277989]
[1733911942629,6.79277989,223.53,223.48,2.2367]
[1733911943030,6.79277989,223.53,223.46,6.79277989]
[1733911943833,6.79277989,223.53,223.48,2.2367]
[1733911944532,6.79277989,223.51,223.47,2.2368]
[1733911944729,2.04,223.5,223.47,2.2368]
[1733911945331,2.04,223.5,223.48,5.31478753]
[1733911945934,2.04,223.5,223.47,2.2368]
[1733911946234,6.79277989,223.49,223.41,41.13872104]
[1733911946431,6.79277989,223.47,223.41,41.13872104]
[1733911946938,6.79277989,223.47,223.43,2.2372]
[1733911947330,6.79277989,223.47,223.45,5.27076161]
[1733911950838,4.2765,223.5,223.45,5.27076161]
[1733911951140,2.04,223.51,223.45,5.27076161]
[1733911951641,2.04,223.51,223.46,6.79277989]
[1733911951938,2.04,223.51,223.49,2.2366]
[1733911954437,2.04,223.51,223.5,2.2365]
[1733911955940,6.79277989,223.55,223.48,6.79277989]
[1733911956150,6.79277989,223.57,223.48,6.79277989]
[1733911956342,2.04,223.56,223.48,6.79277989]
[1733911957347,6.79277989,223.58,223.5,6.79277989]
[1733911957643,8.83277989,223.58,223.54,2.2361]
[1733911957839,8.83277989,223.58,223.45,5.3732538]
[1733911957840,6.79277989,223.56,223.45,5.3732538]
[1733911958040,6.79277989,223.51,223.45,5.3732538]
[1733911958237,6.79277989,223.49,223.45,5.3732538]
[1733911958643,6.79277989,223.49,223.45,7.6102538]
[1733911961544,6.79277989,223.49,223.45,5.3732538]
[1733911962642,6.79277989,223.49,223.45,7.6102538]
[1733911964643,2.04,223.51,223.48,2.2367]
[1733911968254,2.04,223.51,223.49,2.2366]
[1733911969145,2.04,223.51,223.45,5.3732538]
[1733911969350,2.04,223.51,223.48,2.2367]
[1733911969545,2.04,223.51,223.45,5.3732538]
[1733911969854,2.04,223.51,223.49,2.2366]
[1733911971352,6.79277989,223.52,223.49,2.2366]
[1733911972854,6.79277989,223.5,223.47,2.2368]
[1733911977860,6.79277989,223.5,223.45,5.3732538]
[1733911978054,6.79277989,223.5,223.48,2.2367]
[1733911978364,2.2363,223.53,223.48,2.2367]
[1733911978560,6.79277989,223.51,223.48,2.2367]
[1733911980465,6.79277989,223.52,223.48,2.2367]
[1733911980656,6.79277989,223.52,223.47,2.2368]
[1733911984763,6.79277989,223.52,223.48,2.2367]
[1733911985664,6.79277989,223.52,223.47,2.2368]
[1733911985865,6.79277989,223.52,223.45,5.3732538]
[1733911986267,6.79277989,223.52,223.48,2.2367]
[1733911986866,4.2761,223.54,223.48,2.2367]
[1733911987165,6.79277989,223.52,223.48,2.2367]
[1733911992668,6.79277989,223.52,223.45,5.3732538]
[1733911993467,4.2761,223.54,223.45,5.3732538]
[1733911993669,6.79277989,223.52,223.48,2.2366]
[1733911995371,2.04,223.53,223.51,2.2364]
[1733911996970,2.04,223.53,223.45,11.41249997]
[1733911997168,2.04,223.53,223.46,6.79277989]
[1733911998473,2.04,223.53,223.51,2.2364]
[1733911999676,2.04,223.53,223.46,24.17058126]
[1733911999873,2.04,223.53,223.48,2.2367]
[1733911999874,6.79277989,223.52,223.48,2.2367]
[1733912000675,2.04,223.53,223.48,2.2367]
[1733912000975,2.04,223.53,223.45,12.16603369]
[1733912001177,8.83277989,223.53,223.45,12.16603369]
[1733912001976,8.83277989,223.53,223.45,18.20527986]
[1733912002373,3.6528,223.57,223.51,2.2364]
[1733912002573,6.79277989,223.57,223.49,6.79277989]
[1733912002775,2.04,223.57,223.49,6.79277989]
[1733912003070,6.79277989,223.57,223.56,2.2359]
[1733912003472,6.79277989,223.57,223.51,6.79277989]
[1733912004879,6.79277989,223.57,223.54,2.236]
[1733912006279,6.79277989,223.57,223.55,2.236]
[1733912006782,6.79277989,223.57,223.5,6.79277989]
[1733912007080,6.79277989,223.59,223.56,2.2359]
[1733912007384,2.04,223.6,223.52,6.79277989]
[1733912007581,8.83277989,223.6,223.56,2.2358]
[1733912011281,8.83277989,223.6,223.55,2.236]
[1733912011584,6.79277989,223.56,223.49,8.83277989]
[1733912012079,6.79277989,223.56,223.52,2.2362]
[1733912012986,6.79277989,223.56,223.53,2.2362]
[1733912013379,6.79277989,223.58,223.53,2.2362]
[1733912013983,2.04,223.6,223.51,6.79277989]
[1733912014284,6.79277989,223.58,223.54,2.236]
[1733912015185,4.2755,223.6,223.54,2.236]
[1733912015388,2.04,223.6,223.55,2.236]
[1733912015686,6.79277989,223.58,223.55,2.236]
[1733912016782,6.79277989,223.58,223.56,2.2358]
[1733912017087,6.79277989,223.58,223.51,6.79277989]
[1733912017493,6.79277989,223.58,223.56,2.2358]
[1733912017786,8.83277989,223.6,223.53,6.79277989]
[1733912019086,8.83277989,223.6,223.57,2.2358]
[1733912020984,8.83277989,223.6,223.58,2.2357]
[1733912021883,8.83277989,223.6,223.57,2.2358]
[1733912024986,8.83277989,223.6,223.57,5.31097624]
[1733912027089,2.04,223.6,223.57,7.54677624]
[1733912028290,3.4076,223.63,223.59,2.2356]
[1733912028487,6.79277989,223.61,223.59,2.2356]
[1733912035899,2.04,223.63,223.59,2.2356]
[1733912036198,6.79277989,223.62,223.59,2.2356]
[1733912038397,6.79277989,223.62,223.6,2.2355]
[1733912038899,2.04,223.63,223.6,2.2355]
[1733912043304,2.04,223.63,223.62,2.2353]
[1733912043511,52.08967,223.64,223.62,2.2353]
[1733912045212,52.08967,223.64,223.61,6.79277989]
[1733912045410,52.08967,223.64,223.63,2.2352]
[1733912046514,52.08967,223.64,223.63,9.02797989]
[1733912048513,52.08967,223.64,223.63,2.2352]
[1733912048713,52.08967,223.64,223.63,9.02797989]
[1733912050516,52.08967,223.64,223.63,2.2352]
[1733912057426,52.08967,223.64,223.62,2.2353]
[1733912057724,52.08967,223.64,223.63,6.79277989]
[1733912058321,52.08967,223.64,223.62,2.2353]
[1733912058517,52.08967,223.64,223.57,5.31097624]
[1733912058820,54.12967,223.64,223.61,6.79277989]
[1733912059522,54.12967,223.64,223.57,5.31097624]
[1733912059719,54.12967,223.64,223.61,6.79277989]
[1733912060621,54.12967,223.64,223.61,9.02817989]
[1733912061123,54.12967,223.64,223.59,2.2356]
[1733912061323,54.12967,223.64,223.61,6.79277989]
[1733912061820,54.12967,223.64,223.57,5.31097624]
[1733912061821,54.12967,223.64,223.59,6.79277989]
[1733912065423,54.12967,223.64,223.58,2.2357]
[1733912065627,54.12967,223.64,223.59,6.79277989]
[1733912066126,54.12967,223.64,223.59,9.02827989]
[1733912067322,6.79277989,223.63,223.57,5.31097624]
[1733912067827,2.2353,223.62,223.57,5.31097624]
[1733912068022,6.79277989,223.63,223.57,5.31097624]
[1733912069723,6.79277989,223.63,223.57,12.10375613]
[1733912070623,9.02797989,223.63,223.59,2.2356]
[1733912071426,54.12967,223.64,223.61,2.2354]
[1733912072932,54.12967,223.64,223.57,5.31097624]
[1733912073126,9.02807989,223.63,223.59,2.2356]
[1733912076032,9.02807989,223.63,223.58,2.2357]
[1733912078035,2.2354,223.62,223.57,5.31097624]
[1733912079834,2.2354,223.62,223.57,7.54677624]
[1733912082432,2.2352,223.63,223.58,2.2357]
[1733912082637,60.92244989,223.64,223.57,5.31097624]
[1733912083636,2.2353,223.62,223.57,7.54677624]
[1733912083938,2.2353,223.62,223.57,5.31097624]
[1733912084636,2.2353,223.62,223.58,2.2357]
[1733912084837,2.04,223.61,223.58,2.2357]
[1733912086037,2.04,223.61,223.57,7.54677624]
[1733912090033,6.79277989,223.59,223.45,5.3732538]
[1733912090335,6.79277989,223.55,223.48,6.79277989]
[1733912090542,2.04,223.54,223.48,6.79277989]
[1733912091841,4.2762,223.54,223.48,9.02947989]
[1733912092034,4.2762,223.54,223.48,2.2367]
[1733912092234,4.2762,223.54,223.48,9.02947989]
[1733912092935,2.04,223.54,223.5,6.79277989]
[1733912093641,2.04,223.54,223.52,6.79277989]
[1733912094146,2.04,223.54,223.52,9.02897989]
[1733912095143,2.04,223.54,223.53,2.2362]
[1733912095441,2.04,223.54,223.52,6.79277989]
[1733912095442,2.04,223.58,223.52,6.79277989]
[1733912095743,2.04,223.58,223.54,9.02877989]
[1733912096042,2.04,223.58,223.54,2.236]
[1733912098337,2.04,223.58,223.53,2.2362]
[1733912099639,4.2757,223.58,223.53,2.2362]
[1733912101269,6.79277989,223.55,223.49,6.79277989]
[1733912101676,6.79277989,223.55,223.46,1.3618]
[1733912101968,6.79277989,223.55,223.47,6.79277989]
[1733912102166,2.8037,223.63,223.45,5.3732538]
[1733912102390,6.79277989,223.55,223.48,6.79277989]
[1733912102573,2.04,223.54,223.48,6.79277989]
[1733912103881,2.04,223.54,223.44,6.21826221]
[1733912103882,6.79277989,223.49,223.44,6.21826221]
[1733912104077,2.04,223.48,223.44,6.21826221]
[1733912104283,6.79277989,223.47,223.44,6.21826221]
[1733912105397,9.02977989,223.45,223.44,6.21826221]
[1733912105572,9.02977989,223.45,223.44,4.02556221]
[1733912109989,2.2369,223.46,223.44,4.02556221]
[1733912113091,6.79277989,223.47,223.44,4.02556221]
[1733912113284,2.04,223.46,223.44,6.26266221]
[1733912113695,2.04,223.46,223.44,4.02556221]
[1733912114394,4.2769,223.46,223.44,4.02556221]
[1733912115103,4.2769,223.46,223.42,2.2372]
[1733912115296,2.04,223.46,223.4,6.79277989]
[1733912115488,6.79277989,223.45,223.4,2.2374]
[1733912115993,6.79277989,223.45,223.34,54.55274434]
[1733912116187,6.79277989,223.39,223.3,24.87304884]
[1733912116489,2.04,223.38,223.3,24.87304884]
[1733912116691,2.04,223.38,223.31,6.79277989]
[1733912117191,2.04,223.38,223.33,6.79277989]
[1733912117490,2.04,223.38,223.34,5.44207016]
[1733912117691,2.04,223.38,223.34,7.68007016]
[1733912117891,2.04,223.38,223.34,5.44207016]
[1733912119194,6.79277989,223.37,223.3,24.87304884]
[1733912119396,6.79277989,223.37,223.3,31.66582873]
[1733912119593,6.79277989,223.37,223.31,5.48461714]
[1733912119895,2.04,223.38,223.32,9.03097989]
[1733912120093,2.04,223.38,223.32,6.79277989]
[1733912120591,2.04,223.38,223.32,9.03107989]
[1733912120985,9.03067989,223.37,223.31,5.48461714]
[1733912121192,6.79277989,223.37,223.31,5.48461714]
[1733912121695,4.2778,223.38,223.32,6.79277989]
[1733912122296,2.2378,223.37,223.32,6.79277989]
[1733912124194,6.79277989,223.37,223.31,6.79277989]
[1733912125400,9.03067989,223.37,223.31,6.79277989]
[1733912125729,9.03067989,223.37,223.3,7.52325533]
[1733912126198,9.03067989,223.37,223.3,14.31603522]
[1733912126390,9.03067989,223.37,223.31,2.2384]
[1733912127291,6.79277989,223.33,223.22,154.69521244]
[1733912127491,6.79277989,223.31,223.22,161.48799233]
[1733912127795,6.79277989,223.27,223.22,154.69521244]
[1733912127997,2.04,223.26,223.22,154.69521244]
[1733912128289,2.04,223.27,223.22,160.12609499]
[1733912128495,2.04,223.27,223.25,6.79277989]
[1733912128802,2.04,223.27,223.26,2.2389]
[1733912129203,2.04,223.27,223.22,160.12609499]
[1733912129399,8.83277989,223.27,223.23,2.2392]
[1733912130979,2.04,223.27,223.23,2.2392]
[1733912131180,6.79277989,223.25,223.22,5.43088255]
[1733912131380,6.79277989,223.25,223.19,3.5988]
[1733912131875,6.79277989,223.25,223.19,1.3593]
[1733912132083,2.04,223.27,223.2,5.40072095]
[1733912132277,6.79277989,223.25,223.2,5.40072095]
[1733912132573,2.04,223.27,223.2,5.40072095]
[1733912132574,6.79277989,223.23,223.2,5.40072095]
[1733912132775,2.04,223.22,223.2,5.40072095]
[1733912134269,6.79277989,223.21,223.17,1.3704]
[1733912134473,6.79277989,223.21,223.13,1.4607]
[1733912134874,6.79277989,223.21,223.14,6.79277989]
[1733912136270,6.79277989,223.15,222.91,51.0449]
[1733912136471,6.79277989,223.09,223.06,5.34475503]
[1733912136677,2.04,223.08,223.07,2.24144887]
[1733912136969,1.0,223.2,223.07,2.24144887]
[1733912137378,6.79277989,223.11,223.07,2.24144887]
[1733912137568,2.04,223.11,223.07,2.24144887]
[1733912137775,6.79277989,223.15,223.08,6.79277989]
[1733912137970,2.04,223.14,223.12,2.2403]
[1733912138379,2.04,223.14,223.09,1.4296]
[1733912138878,2.04,223.14,223.1,2.24114746]
[1733912139075,6.79277989,223.12,223.1,2.24114746]
[1733912143583,9.03307989,223.12,223.1,2.24114746]
[1733912144185,6.79277989,223.12,223.02,6.76097481]
[1733912144389,2.04,223.14,223.03,2.2412]
[1733912144585,6.79277989,223.06,223.03,2.2412]
[1733912144781,6.79277989,223.06,223.02,6.76097481]
[1733912144782,2.2406,223.1,223.02,6.76097481]
[1733912145079,6.79277989,223.07,223.02,9.00227481]
[1733912146379,6.79277989,223.05,223.02,5.33137481]
[1733912146590,2.04,223.04,223.02,5.33137481]
[1733912147183,6.79277989,223.03,222.94,1.4422]
[1733912147382,6.79277989,223.03,222.96,6.79277989]
[1733912148585,6.79277989,223.03,222.98,2.2417]
[1733912148781,6.79277989,223.03,222.95,1.361]
[1733912148983,6.79277989,223.03,222.95,8.15377989]
[1733912149179,6.79277989,223.03,222.98,5.37196332]
[1733912149388,2.04,223.04,222.99,6.79277989]
[1733912149783,2.04,223.04,223.0,1.3237]
[1733912150283,2.04,223.04,223.01,6.79277989]
[1733912150480,2.2404,223.11,223.04,2.2411]
[1733912150680,6.79277989,223.11,223.03,6.79277989]
[1733912150881,2.04,223.1,223.03,6.79277989]
[1733912151687,2.04,223.1,223.05,2.241]
[1733912151891,2.04,223.1,223.03,6.79277989]
[1733912153188,2.04,223.1,223.02,1.4242]
[1733912153388,2.04,223.1,223.04,2.2411]
[1733912153692,2.04,223.1,223.02,1.4242]
[1733912154191,2.04,223.1,223.05,2.2409]
[1733912154386,2.04,223.1,223.02,1.4242]
[1733912155682,69.99622878,223.16,223.03,10.60961762]
[1733912155889,2.2406453,223.15,223.03,10.60961762]
[1733912156084,2.04,223.14,223.04,1.3903]
[1733912156693,4.2806453,223.15,223.04,1.3903]
[1733912157390,14.89026292,223.15,223.04,1.3903]
[1733912157990,10.60961762,223.12,223.02,1.4242]
[1733912158191,10.60961762,223.12,223.0,1.3237]
[1733912158392,10.60961762,223.09,223.0,1.3237]
[1733912158591,10.60961762,223.09,223.02,2.2413]
[1733912158592,2.2406,223.09,223.02,2.2413]
[1733912158894,2.2406453,223.15,223.03,10.60961762]
[1733912159090,2.2406453,223.15,223.04,1.3368]
[1733912159892,12.85026292,223.15,223.0,11.93331762]
[1733912160292,12.85026292,223.15,223.0,1.3237]
[1733912160888,2.2405,223.11,223.04,2.2411]
[1733912161090,2.04,223.1,223.0,1.3237]
[1733912161894,2.04,223.1,223.04,2.2411]
[1733912163293,2.2408,223.08,223.02,2.2413]
[1733912163496,10.60961762,223.09,223.0,1.3237]
[1733912163690,10.60961762,223.09,222.98,8.17506332]
[1733912163895,2.2412,223.04,222.98,7.61366332]
[1733912164196,10.60961762,223.06,222.98,5.37196332]
[1733912164197,2.04,223.03,222.98,5.37196332]
[1733912164792,12.64961762,223.03,222.98,5.37196332]
[1733912165098,12.64961762,223.03,222.93,2.2422]
[1733912165099,2.2415,223.0,222.93,2.2422]
[1733912165294,10.60961762,223.0,222.93,2.2422]
[1733912165492,10.60961762,223.0,222.95,5.28665857]
[1733912165689,2.2416,222.99,222.95,5.28665857]
[1733912165888,2.04,222.98,222.95,5.28665857]
[1733912167192,4.2818,222.98,222.92,2.2423]
[1733912167396,4.2818,222.98,222.88,1.3744]
[1733912167397,10.60961762,222.97,222.88,1.3744]
[1733912167699,12.85151762,222.97,222.88,1.3744]
[1733912168291,2.2421,222.95,222.88,2.2427]
[1733912168794,12.85181762,222.94,222.9,5.2985363]
[1733912169094,2.04,222.93,222.85,1.4175]
[1733912169290,2.04,222.93,222.83,1.4608]
[1733912170497,2.04,222.93,222.87,2.2428]
[1733912170691,2.04,222.93,222.88,5.25020816]
[1733912170892,2.04,222.94,222.88,5.25020816]
[1733912172092,2.2423,222.93,222.88,5.25020816]
[1733912172495,12.64961762,222.94,222.88,5.25020816]
[1733912173895,2.2423,222.93,222.88,5.25020816]
[1733912174498,12.64961762,222.94,222.88,5.25020816]
[1733912174703,2.04,222.94,222.88,5.25020816]
[1733912175100,2.04,222.94,222.88,7.49290816]
[1733912176200,2.04,222.94,222.89,2.2426]
[1733912177195,2.04,222.94,222.88,5.25020816]
[1733912178705,2.04,222.94,222.9,2.2425]
[1733912180810,2.04,222.94,222.88,5.25020816]
[1733912181007,2.2423,222.93,222.88,7.49290816]
[1733912181606,2.04,222.94,222.88,7.49290816]
[1733912181911,2.2423,222.92,222.88,7.49290816]
[1733912182710,2.04,222.94,222.88,7.49290816]
[1733912182711,2.2423,222.93,222.88,7.49290816]
[1733912182906,2.04,222.94,222.89,2.2426]
[1733912183112,2.04,222.94,222.88,5.25020816]
[1733912183113,2.04,222.95,222.88,5.25020816]
[1733912183608,2.04,222.95,222.9,2.2425]
[1733912184717,4.2821,222.95,222.9,2.2425]
[1733912184916,2.04,222.95,222.9,2.2425]
[1733912186017,10.60961762,222.93,222.88,5.25020816]
[1733912186220,12.85181762,222.93,222.88,5.25020816]
[1733912187020,12.85181762,222.93,222.87,2.2428]
[1733912187213,6.80325141,222.89,222.87,2.2428]
[1733912188118,6.80325141,222.91,222.83,8.26405141]
[1733912188517,6.80325141,222.91,222.89,2.2426]
[1733912188716,6.80325141,222.91,222.83,8.26405141]
[1733912189022,2.2419,222.97,222.88,2.2427]
[1733912189315,6.80325141,222.93,222.85,6.80325141]
[1733912189616,1.3817,223.07,222.92,6.80325141]
[1733912189816,6.80325141,222.98,222.91,6.80325141]
[1733912190212,1.3817,223.07,222.95,6.80325141]
[1733912190416,6.80325141,223.04,222.95,6.80325141]
[1733912190613,2.04,223.05,222.97,6.80325141]
[1733912190813,2.24185087,223.03,222.97,6.80325141]
[1733912191221,2.24185087,223.03,222.94,10.61480943]
[1733912191419,2.24185087,223.03,222.95,1.4447]
[1733912191820,2.24185087,223.03,223.02,2.2413]
[1733912192623,2.04,223.09,223.0,10.61480943]
[1733912192819,2.04,223.11,223.0,11.99940943]
[1733912193023,4.28104701,223.11,223.0,11.99940943]
[1733912193416,4.28104701,223.11,223.07,2.2408]
[1733912194026,14.89585644,223.11,223.0,1.3846]
[1733912194919,14.89585644,223.11,223.02,5.39897379]
[1733912196519,14.89585644,223.11,223.05,2.241]
[1733912196720,14.89585644,223.11,223.02,5.39897379]
[1733912196721,4.28104701,223.11,223.02,5.39897379]
[1733912196926,2.04,223.11,223.02,5.39897379]
[1733912198326,2.04,223.11,223.07,2.2408]
[1733912199524,2.04,223.11,223.02,5.39897379]
[1733912199828,2.04,223.11,222.99,6.15904758]
[1733912199829,10.61480943,223.07,222.99,6.15904758]
[1733912200023,3.3707,223.06,222.99,6.15904758]
[1733912200522,10.61480943,223.04,222.99,6.15904758]
[1733912200722,2.2412,223.03,222.99,6.15904758]
[1733912201426,10.61480943,223.04,222.99,6.15904758]
[1733912201726,1.3307,223.06,222.99,6.15904758]
[1733912201929,2.04,223.05,222.99,6.15904758]
[1733912203727,2.04,223.05,223.0,2.2415]
[1733912204328,4.2811,223.05,222.99,2.2416]
[1733912207938,2.04,223.05,223.0,2.2415]
[1733912208136,10.61480943,223.07,222.98,5.458779]
[1733912208437,2.04,223.06,222.98,5.458779]
[1733912208634,2.04,223.06,223.05,2.241]
[1733912209341,2.04,223.12,223.08,2.2407]
[1733912209541,2.04,223.12,223.02,10.61480943]
[1733912209738,2.04,223.12,223.03,1.4263]
[1733912209934,2.04,223.14,223.03,1.4263]
[1733912210638,2.04,223.14,223.1,2.2405]
[1733912210934,2.04,223.14,223.05,10.61480943]
[1733912211141,62.70447943,223.19,223.13,2.2402]
[1733912211436,2.04,223.18,223.13,2.2402]
[1733912213231,2.04,223.18,223.06,2.04]
[1733912214042,2.2398,223.17,223.06,2.04]
[1733912214735,2.2398,223.17,223.11,2.2403]
[1733912215240,4.2797,223.18,223.12,2.2403]
[1733912215732,4.2797,223.18,223.06,2.04]
[1733912215935,4.2797,223.18,223.08,10.61480943]
[1733912215936,2.04,223.18,223.08,10.61480943]
[1733912216138,2.04,223.18,223.09,1.4208]
[1733912216342,2.04,223.18,223.09,2.848]
[1733912216639,2.04,223.18,223.13,2.2402]
[1733912218940,2.04,223.18,223.14,5.33113584]
[1733912219736,2.04,223.18,223.14,7.57123584]
[1733912220337,2.04,223.18,223.09,2.848]
[1733912220537,2.04,223.18,223.1,2.2405]
[1733912220742,10.61480943,223.16,223.02,11.93490943]
[1733912220941,2.2405,223.11,223.06,2.2409]
[1733912221141,2.04,223.1,223.02,1.3201]
[1733912222744,2.04,223.1,223.05,2.241]
[1733912224637,2.04,223.1,223.08,5.44660807]
[1733912226748,2.04,223.1,223.09,2.2406]
[1733912229049,488.0,224.27,223.13,2.2402]
[1733912229050,2.04,223.15,223.13,2.2402]
[1733912229851,2.04,223.15,223.11,2.2403]
[1733912230752,2.04,223.15,223.12,2.2403]
[1733912231845,2.04,223.15,223.08,5.44660807]
[1733912232246,2.04,223.15,223.11,2.2403]
[1733912232744,2.04,223.15,223.12,2.2403]
[1733912233650,2.04,223.15,223.1,2.2405]
[1733912233950,2.04,223.15,223.08,5.44660807]
[1733912235349,2.04,223.15,223.12,2.2402]
[1733912236749,2.04,223.15,223.13,2.2402]
[1733912237148,2.04,223.15,223.12,2.2403]
[1733912241851,2.04,223.15,223.1,6.78621584]
[1733912242050,2.04,223.15,223.13,2.2402]
[1733912242361,2.04,223.15,223.1,6.78621584]
[1733912243557,2.04,223.15,223.12,2.2403]
[1733912244054,2.04,223.15,223.1,6.78621584]
[1733912245161,2.04,223.15,223.08,5.44660807]
[1733912245162,2.04,223.15,223.12,6.78621584]
[1733912245858,52.08967,223.19,223.14,6.78621584]
[1733912246163,52.08967,223.19,223.16,6.78621584]
[1733912246568,52.08967,223.19,223.11,6.15904758]
[1733912246569,52.08967,223.19,223.18,6.78621584]
[1733912246863,52.08967,223.19,223.18,9.02591584]
[1733912247367,184.77142741,223.48,223.18,8.82621584]
[1733912247567,6.78621584,223.4,223.32,6.78621584]
[1733912247767,8.82621584,223.4,223.32,6.78621584]
[1733912249263,2.04,223.39,223.29,10.58218851]
[1733912251158,2.04,223.39,223.32,2.2383]
[1733912251363,2.04,223.39,223.29,10.58218851]
[1733912253067,2.04,223.39,223.35,2.238]
[1733912253266,3.6951,223.41,223.29,10.58218851]
[1733912253467,5.7351,223.41,223.29,10.58218851]
[1733912253667,3.4977,223.41,223.29,10.58218851]
[1733912253967,3.4977,223.41,223.35,2.238]
[1733912254568,5.7351,223.41,223.35,2.238]
[1733912254768,3.4977,223.41,223.29,10.58218851]
[1733912254968,3.4977,223.41,223.36,2.2379]
[1733912255469,1.4577,223.41,223.38,2.2376]
[1733912255667,2.04,223.46,223.35,10.58218851]
[1733912255974,2.04,223.46,223.36,2.04]
[1733912256166,2.04,223.46,223.38,10.58218851]
[1733912256669,6.111,223.51,223.45,2.237]
[1733912257270,6.111,223.51,223.38,10.58218851]
[1733912257470,4.071,223.51,223.41,10.58218851]
[1733912257673,2.04,223.52,223.42,2.04]
[1733912257969,41.77672,223.53,223.42,2.04]
[1733912258164,43.81672,223.53,223.42,2.04]
[1733912258575,46.05302,223.53,223.46,2.2369]
[1733912260773,46.05302,223.53,223.42,2.04]
[1733912260774,46.05302,223.53,223.47,2.2368]
[1733912260971,46.05302,223.53,223.42,2.04]
[1733912261768,43.81672,223.53,223.42,2.04]
[1733912262577,46.05292,223.53,223.46,2.2369]
[1733912263075,43.81672,223.53,223.44,10.58218851]
[1733912263279,41.77672,223.53,223.44,10.58218851]
[1733912263974,41.77672,223.53,223.46,2.2369]
[1733912264184,41.77672,223.53,223.44,10.58218851]
[1733912264479,41.77672,223.53,223.47,10.58218851]
[1733912264878,41.77672,223.53,223.47,12.62218851]
[1733912266578,41.77672,223.53,223.52,2.2363]
[1733912267481,41.77672,223.53,223.5,12.81858851]
[1733912267677,41.77672,223.53,223.47,12.62218851]
[1733912267879,41.77672,223.53,223.5,5.35803678]
[1733912269584,41.77672,223.53,223.51,2.2364]
[1733912269784,41.77672,223.53,223.5,5.35803678]
[1733912270284,41.77672,223.53,223.5,15.94022529]
[1733912270581,41.77672,223.53,223.5,5.35803678]
[1733912271283,41.77672,223.53,223.5,12.12080394]
[1733912271782,41.77672,223.53,223.52,6.76276716]
[1733912272783,41.77672,223.53,223.52,8.99906716]
[1733912274484,41.77672,223.53,223.52,2.2363]
[1733912274684,41.77672,223.53,223.52,8.99906716]
[1733912279686,2.04,223.61,223.52,6.76276716]
[1733912279887,2.2356,223.59,223.54,6.76276716]
[1733912280592,8.80276716,223.6,223.51,2.2364]
[1733912280793,6.76276716,223.58,223.5,5.35803678]
[1733912280995,6.76276716,223.58,223.5,12.12080394]
[1733912281188,2.04,223.6,223.52,6.76276716]
[1733912281189,1.4194,223.57,223.52,6.76276716]
[1733912282494,3.6553,223.57,223.52,6.76276716]
[1733912283092,1.4194,223.57,223.52,8.99906716]
[1733912283988,1.4194,223.57,223.52,2.2363]
[1733912284188,1.4194,223.57,223.52,6.76276716]